[Event "FRA-chT Top 12"]
[Site "Brest"]
[Date "2018.06.02"]
[Round "8"]
[White "Jobava, Baadur"]
[Black "Fressinet, Laurent"]
[Result "1-0"]
[ECO "C68"]
[WhiteElo "2663"]
[BlackElo "2651"]
[PlyCount "100"]
[EventDate "2018.05.26"]
[EventType "team-tourn"]
[EventRounds "11"]
[EventCountry "FRA"]
[SourceTitle "EXT 2019"]
[Source "ChessBase"]
[SourceDate "2018.10.10"]
[SourceVersion "1"]
[SourceVersionDate "2018.10.10"]
[SourceQuality "1"]
[WhiteTeam "Tremblay en France"]
[BlackTeam "Clichy Echecs 92"]
[WhiteTeamCountry "FRA"]
[BlackTeamCountry "FRA"]
[TimeControl "40/5400+30:1800+30"]

1. e4 {[%emt 0:04:09]} e5 {[%emt 0:01:29]} 2. Nf3 {[%emt 0:12:46]} Nc6 {
[%emt 0:00:07]} 3. Bb5 {[%emt 0:00:13]} a6 {[%emt 0:00:48]} 4. Bxc6 {[%emt 0:
00:07]} dxc6 {[%emt 0:00:06]} 5. O-O {[%emt 0:00:23]} Bd6 {[%emt 0:00:47]} 6.
Na3 {[%emt 0:04:27]} Be6 {[%emt 0:06:16]} 7. d4 {[%emt 0:14:37]} exd4 {[%emt 0:
06:53]} 8. Qxd4 {[%emt 0:07:38]} f6 {[%emt 0:02:08]} 9. Qc3 {[%emt 0:09:13]}
Ne7 {[%emt 0:06:16]} 10. Nc4 {[%emt 0:07:09]} Bxc4 {[%emt 0:04:48]} 11. Qxc4 {
[%emt 0:07:20]} Qd7 {[%emt 0:00:05]} 12. Nd4 $146 {[%emt 0:11:22]} (12. Be3 Ng6
13. Nd4 Ne5 14. Qe2 O-O-O 15. Nf5 Rhe8 16. Rad1 Qf7 17. b3 Bf8 18. Bf4 Ng6 19.
Bg3 Qe6 20. Rxd8+ Rxd8 21. f3 Ne7 22. Ne3 f5 23. Qc4 Qxc4 24. Nxc4 fxe4 25.
fxe4 Ng6 26. h4 Bc5+ 27. Kh2 Rf8 28. Rf3 h5 29. Kh3 b5 30. Nb2 Kd7 31. Rd3+ Ke6
32. Rc3 Bd6 33. Rxc6 Ne5 34. Rxa6 Rf1 35. Bxe5 Kxe5 36. g3 Kxe4 37. Nd3 {
0-1 (37) Ivanchuk,V (2726)-Vidit,S (2715) Riadh 2017}) 12... b5 {[%emt 0:06:50]
} 13. Qb3 {[%emt 0:02:34]} c5 {[%emt 0:09:37]} 14. Ne6 {[%emt 0:00:16]} c4 {
[%emt 0:00:46]} 15. Qh3 {[%emt 0:00:11]} Kf7 {[%emt 0:07:39]} 16. Ng5+ {
[%emt 0:00:04]} Ke8 {[%emt 0:00:04]} 17. Ne6 {[%emt 0:00:02]} Kf7 {[%emt 0:00:
04]} 18. Ng5+ {[%emt 0:00:05]} Ke8 {[%emt 0:00:04]} 19. Qxd7+ {[%emt 0:01:12]}
Kxd7 {[%emt 0:00:59]} 20. Nf7 {[%emt 0:00:03]} Rhe8 {[%emt 0:03:12]} 21. Rd1 {
[%emt 0:01:12]} Kc6 {[%emt 0:03:18]} 22. Be3 {[%emt 0:08:15]} Ng6 {[%emt 0:06:
30]} 23. Nxd6 {[%emt 0:00:04]} cxd6 {[%emt 0:00:03]} 24. a4 {[%emt 0:01:06]}
Ne5 {[%emt 0:02:26]} 25. f3 {[%emt 0:01:40]} g5 {[%emt 0:01:29]} 26. Kf2 {
[%emt 0:00:13]} Reb8 {[%emt 0:04:33]} 27. axb5+ {[%emt 0:02:48]} axb5 {[%emt 0:
01:40]} 28. Ba7 {[%emt 0:00:03]} Rd8 {[%emt 0:01:54]} 29. Ke3 {[%emt 0:01:01]}
Re8 {[%emt 0:03:46]} 30. Bd4 {[%emt 0:02:18]} h5 {[%emt 0:03:01]} 31. Bc3 {
[%emt 0:01:03]} Nd7 {[%emt 0:02:06]} 32. Rxa8 {[%emt 0:01:23]} Rxa8 {[%emt 0:
00:02]} 33. h4 {[%emt 0:00:11]} Ra2 {[%emt 0:06:25]} (33... gxh4 {[%cal Ga8g8]}
34. Kf4 Rg8 $132) 34. g3 {[%emt 0:01:08]} gxh4 {[%emt 0:02:56]} 35. gxh4 {
[%emt 0:00:03]} Ne5 {[%emt 0:00:02]} 36. Rd5 {[%emt 0:00:45]} f5 {[%emt 0:03:
53]} 37. Kf4 {[%emt 0:00:05]} fxe4 {[%emt 0:01:00]} 38. fxe4 {[%emt 0:00:03]}
Ra1 {[%emt 0:01:39]} 39. Kf5 {[%emt 0:01:03]} Nd7 {[%emt 0:01:34]} 40. Bb4 {
[%emt 0:01:08]} Rf1+ {[%emt 0:30:27]} 41. Kg5 {[%emt 0:03:57]} Nc5 {[%emt 0:00:
00]} 42. Bxc5 {[%emt 0:00:51]} dxc5 {[%emt 0:00:00]} 43. Rd2 {[%emt 0:00:02]}
Re1 {[%emt 0:00:00]} 44. Kxh5 {[%emt 0:01:28]} Rxe4 {[%emt 0:00:00]} 45. Kg5 {
[%emt 0:00:03]} c3 {[%emt 0:00:00]} 46. bxc3 {[%emt 0:00:05]} Re3 {[%emt 0:00:
00]} 47. c4 {[%emt 0:00:06]} bxc4 {[%emt 0:00:00]} 48. h5 {[%emt 0:01:14]} Rg3+
{[%emt 0:00:00]} 49. Kh4 {[%emt 0:00:13]} Rg1 {[%emt 0:00:00]} 50. Rh2 {
[%emt 0:00:08]} Kd5 1-0